bitfinex/quotes_ETHUSD_20240916
["timestamp","ask_amount","ask_price","bid_price","bid_amount"]
[1726506501514,0.91035014,2285.2,2285.0,4.37634]
[1726506502235,0.91035014,2285.2,2284.9,4.3764]
[1726506502522,0.91035014,2285.0,2284.6,4.4147327]
[1726506503499,0.91035014,2285.0,2284.7,0.13792636]
[1726506503801,0.91035014,2285.0,2284.7,8.89169636]
[1726506504198,0.91035014,2285.1,2284.9,4.37646]
[1726506504399,0.91035014,2285.2,2284.9,4.37646]
[1726506504632,0.91035014,2285.1,2285.0,0.13781573]
[1726506504803,0.91035014,2285.1,2284.8,4.37658]
[1726506505128,0.91035014,2285.1,2285.0,0.13781573]
[1726506505293,0.91035014,2285.1,2284.9,0.13787946]
[1726506505495,2.5432578,2285.2,2285.0,0.13781573]
[1726506505690,2.23906547,2285.1,2285.0,0.13781573]
[1726506505891,0.87394045,2285.1,2284.7,4.37685]
[1726506506095,0.9111367,2285.0,2284.7,4.37685]
[1726506506360,0.9111367,2285.0,2284.6,0.0376927]
[1726506506532,0.9111367,2285.1,2284.9,4.37655]
[1726506506707,0.9111367,2285.2,2284.9,4.37655]
[1726506506909,0.9111367,2285.2,2284.9,8.75301]
[1726506507733,0.9111367,2285.2,2285.0,4.37633]
[1726506507892,0.9111367,2285.2,2285.1,4.37617]
[1726506508294,0.9111367,2285.2,2285.0,4.37625]
[1726506508536,0.9111367,2285.3,2285.2,4.37598]
[1726506508739,0.9111367,2285.4,2285.3,4.37579]
[1726506508933,0.9111367,2285.4,2285.2,4.37598]
[1726506509134,0.9111367,2285.4,2285.2,4.37589]
[1726506509808,0.9111367,2285.4,2285.2,4.37588]
[1726506510007,0.9111367,2285.4,2285.3,8.75158]
[1726506510251,0.9111367,2285.7,2285.6,4.37521]
[1726506510448,0.9111367,2285.7,2285.5,4.37541]
[1726506510663,0.9111367,2285.6,2285.4,4.37558]
[1726506511039,0.9111367,2285.6,2285.3,4.37562]
[1726506511247,0.9111367,2285.6,2284.9,3.0]
[1726506511248,0.9111367,2285.4,2284.9,4.37637]
[1726506511446,2.2627,2285.2,2284.8,6.7155]
[1726506511657,3.1738367,2285.2,2284.8,4.3766]
[1726506511889,3.1738367,2285.2,2284.9,4.37655]
[1726506512181,0.9111367,2285.2,2284.7,4.37678]
[1726506512342,0.9111367,2285.2,2285.0,4.37618]
[1726506512541,0.9111367,2285.3,2285.0,4.37618]
[1726506512739,0.9111367,2285.2,2285.0,4.37618]
[1726506512978,0.9111367,2285.3,2285.0,4.37618]
[1726506513970,0.9111367,2285.3,2285.1,4.37617]
[1726506514200,0.9111367,2285.3,2285.0,4.37634]
[1726506514511,0.9111367,2285.3,2284.8,4.37659]
[1726506514512,3.2422367,2285.1,2284.8,4.37659]
[1726506514710,3.2422367,2285.1,2284.8,8.75325]
[1726506514915,3.2422367,2285.1,2284.8,8.75323]
[1726506515206,0.9111367,2285.1,2284.6,0.0376927]
[1726506515366,1.8201667,2285.3,2284.6,0.0376927]
[1726506515367,0.9111367,2285.3,2285.0,4.37636]
[1726506515566,0.9111367,2285.1,2285.0,4.37636]
[1726506516407,0.9111367,2285.1,2284.9,4.37645]
[1726506516610,0.9111367,2285.1,2284.9,8.75286]
[1726506516807,0.9111367,2285.1,2285.0,8.75272]
[1726506517116,0.9111367,2285.3,2285.2,4.37598]
[1726506517267,0.9111367,2285.3,2285.1,4.37617]
[1726506517469,0.9111367,2285.2,2285.0,4.37634]
[1726506517685,0.9111367,2285.2,2284.9,4.37639]
[1726506517686,0.9111367,2285.2,2284.9,8.75284]
[1726506517888,0.9111367,2285.1,2285.0,4.37636]
[1726506518213,2.27889043,2285.4,2285.2,4.37584]
[1726506518214,0.9111367,2285.4,2285.2,4.37584]
[1726506518370,0.9111367,2285.4,2285.3,4.37579]
[1726506518571,0.9111367,2285.4,2285.3,4.51349513]
[1726506519112,0.9111367,2285.5,2285.3,4.51349513]
[1726506519463,0.9111367,2285.4,2285.3,4.51349513]
[1726506519704,0.9111367,2285.5,2285.4,4.3756]
[1726506520011,1.36512502,2285.6,2285.4,4.5132048]
[1726506520313,0.9112047,2285.5,2285.4,4.5132048]
[1726506521205,0.9112047,2285.5,2285.4,0.1376048]
[1726506521206,1.36512502,2285.5,2285.4,0.1376048]
[1726506521441,8.49778466,2285.5,2285.4,0.1376048]
[1726506521735,8.49778466,2285.5,2285.1,4.376]
[1726506521736,9.40986804,2285.5,2285.1,4.376]
[1726506522030,0.9108432,2285.2,2285.1,4.376]
[1726506522233,0.9108432,2285.3,2285.0,4.37634]
[1726506522433,0.9108432,2285.2,2284.9,4.37646]
[1726506522737,0.9108432,2285.1,2284.9,4.37646]
[1726506522892,2.3476,2285.0,2284.7,4.37678]
[1726506523090,0.9108432,2284.9,2284.6,4.4147027]
[1726506523422,0.9108432,2284.8,2284.6,0.0376927]
[1726506523727,1.3662648,2284.7,2284.6,0.0376927]
[1726506523933,7.02738776,2284.7,2284.6,0.0376927]
[1726506524098,2.65044776,2284.7,2284.6,0.0376927]
[1726506524936,0.91033729,2284.7,2284.6,0.0376927]
[1726506525296,0.91033729,2284.8,2284.6,4.4148127]
[1726506525531,0.91033729,2284.8,2284.6,4.4147027]
[1726506525831,0.91033729,2284.9,2284.7,4.37677]
[1726506525993,1.3662648,2285.0,2284.8,4.37675]
[1726506525994,0.91033729,2285.0,2284.8,4.37675]
[1726506526730,0.91033729,2285.0,2284.9,4.37655]
[1726506526891,0.91033729,2285.1,2284.9,4.37655]
[1726506527798,0.91033729,2285.1,2284.9,8.753]
[1726506528026,0.91033729,2285.1,2284.9,4.37645]
[1726506528192,1.3662648,2285.2,2285.0,4.37636]
[1726506528398,0.91063246,2285.1,2285.0,4.37636]
[1726506528700,0.91063246,2285.1,2285.0,9.628001]
[1726506528918,0.91063246,2285.2,2285.1,4.37617]
[1726506529104,0.91063246,2285.2,2285.1,8.75234]
[1726506529307,0.91063246,2285.2,2285.1,4.37617]
[1726506530238,1.3662648,2285.3,2285.0,4.37626]
[1726506530452,0.91076726,2285.1,2285.0,4.37626]
[1726506530811,0.91076726,2285.1,2285.0,12.065489]
[1726506531052,0.91076726,2285.2,2285.1,8.75234]
[1726506531554,0.91076726,2285.3,2285.2,4.37598]
[1726506531847,1.3662648,2285.3,2285.2,4.37598]
[1726506533523,1.3662648,2285.3,2285.2,4.5134632]
[1726506534112,1.3662648,2285.3,2285.2,0.1374832]
[1726506534812,1.3662648,2285.3,2285.2,4.5134632]
[1726506535256,1.3662648,2285.3,2285.2,4.37598]
[1726506535944,1.3662648,2285.4,2285.2,4.5134632]
[1726506536442,0.91127596,2285.3,2285.2,4.5134632]
[1726506537843,0.91127596,2285.3,2285.2,0.1374832]
[1726506539319,1.3662648,2285.4,2285.2,0.1374832]
[1726506539516,1.3662648,2285.3,2285.2,0.1374832]
[1726506539964,1.3662648,2285.3,2285.0,4.37625]
[1726506540254,0.9111221,2285.2,2285.1,0.13754692]
[1726506540664,1.3662648,2285.3,2285.1,0.13754692]
[1726506541160,1.3662648,2285.2,2285.1,0.13754692]
[1726506541322,3.7573648,2285.2,2285.1,0.13754692]
[1726506541654,8.58889641,2285.2,2285.1,0.13770071]
[1726506541861,8.58889641,2285.2,2284.8,4.37658]
[1726506541862,4.21278641,2285.2,2284.8,4.37658]
[1726506542019,0.9111465,2285.0,2284.8,4.37658]
[1726506542955,0.9111465,2285.0,2284.9,4.37655]
[1726506543164,0.9111465,2285.1,2285.0,8.75272]
[1726506543470,0.9111465,2285.5,2285.4,8.7512]
[1726506543624,0.9111465,2285.7,2285.6,4.37521]
[1726506543956,0.9111465,2285.7,2285.6,5.250272]
[1726506544157,0.9111465,2285.7,2285.6,4.37521]
[1726506544456,1.3667207,2285.7,2285.6,4.37521]
[1726506544667,0.91092503,2285.7,2285.6,4.37521]
[1726506546752,1.3667207,2285.7,2285.6,4.37521]
[1726506547057,0.91076986,2285.7,2285.6,8.75042]
[1726506547432,0.91076986,2285.7,2285.6,4.37521]
[1726506548232,0.91076986,2285.7,2285.6,8.75042]
[1726506548439,0.91076986,2285.7,2285.6,8.88799997]
[1726506549376,0.91076986,2285.7,2285.6,4.51278997]
[1726506549541,1.32068756,2285.7,2285.6,0.13757997]
[1726506549883,8.85902411,2285.7,2285.2,4.37584]
[1726506550034,0.9104444,2285.4,2285.3,4.37579]
[1726506550770,0.9104444,2285.4,2285.0,4.37623]
[1726506550964,3.40619211,2285.3,2285.1,4.37615]
[1726506551137,0.91049211,2285.4,2285.1,8.75219]
[1726506551341,0.91049211,2285.4,2285.2,4.37597]
[1726506551582,0.91049211,2285.4,2285.2,6.74917]
[1726506551877,0.91049211,2285.4,2285.2,4.37598]
[1726506552235,0.91049211,2285.5,2285.4,4.3756]
[1726506552437,1.3656666,2285.6,2285.5,8.75082]
[1726506552438,0.91049211,2285.6,2285.5,8.75082]
[1726506552637,0.91049211,2285.7,2285.6,4.37521]
[1726506553165,0.91049211,2285.7,2285.6,8.75042]
[1726506553479,0.91049211,2285.8,2285.7,4.37502]
[1726506554552,0.91049211,2285.8,2285.6,4.3752]
[1726506554872,0.9104657,2285.7,2285.6,4.3752]
[1726506555083,0.9104657,2285.8,2285.5,4.37539]
[1726506555238,0.9104657,2285.7,2285.6,4.37518]
[1726506555749,1.3656666,2285.8,2285.6,4.37518]
[1726506555750,0.9104657,2285.8,2285.6,4.37518]
[1726506555958,0.9104657,2285.7,2285.6,4.37518]
[1726506556348,0.9104657,2285.8,2285.6,4.37518]
[1726506558979,0.9104657,2285.8,2285.6,4.37513]
[1726506559180,0.9104657,2285.9,2285.7,4.37502]
[1726506559379,0.9104657,2285.9,2285.7,4.375]
[1726506559676,0.9104657,2285.8,2285.7,4.375]
[1726506561880,0.67363847,2285.8,2285.7,4.375]
[1726506562086,0.67363847,2285.8,2285.6,4.3752]
[1726506563541,0.67363847,2285.8,2285.7,4.51190643]
[1726506563952,4.29528641,2286.0,2285.7,4.51190643]
[1726506563953,3.8392666,2286.0,2285.7,4.51190643]
[1726506564164,3.8392666,2286.0,2285.7,0.13688643]
[1726506564744,3.8392666,2286.0,2285.6,4.37521]
[1726506564745,19.8015805,2285.7,2285.6,4.37512]
[1726506564998,19.8015805,2285.7,2284.4,0.9175368]
[1726506564999,2.4912,2285.6,2284.4,4.37748]
[1726506565161,4.37626,2285.1,2284.6,4.37701]
[1726506565480,1.36510095,2284.8,2284.6,4.37701]
[1726506565689,0.77207036,2284.7,2284.6,4.37701]
[1726506565844,2.03883527,2284.7,2284.6,4.37701]
[1726506566049,1.36975715,2284.7,2284.6,4.37701]
[1726506566250,2.18527127,2284.7,2284.6,4.37701]
[1726506566719,21.98654353,2284.7,2284.3,4.37762]
[1726506566928,1.36510095,2284.5,2283.3,3.95360604]
[1726506567075,1.36510095,2284.5,2282.6,2.21820277]
[1726506567076,21.16668145,2284.4,2284.0,4.37812]
[1726506567277,20.61699131,2284.3,2284.2,4.3779]
[1726506567493,19.8015805,2284.3,2284.2,8.7558]
[1726506567677,19.8015805,2284.3,2284.2,11.0693]
[1726506567900,19.9085252,2284.3,2284.2,11.0693]
[1726506569005,19.9085252,2284.3,2284.2,4.3779]
[1726506569321,19.9085252,2284.3,2283.9,4.37831]
[1726506569322,22.71407694,2284.3,2283.9,4.37831]
[1726506569617,0.81469922,2284.2,2283.9,4.37831]
[1726506569793,0.81469922,2284.2,2283.7,2.4086]
[1726506569987,5.92886786,2284.1,2283.8,0.14299288]
[1726506570223,2.03671576,2284.0,2283.0,2.4086]
[1726506570387,1.25936427,2284.0,2283.9,0.12104047]
[1726506570587,2.03550712,2284.0,2283.5,2.4086]
[1726506570818,1.36510095,2284.1,2283.7,8.90047914]
[1726506570987,0.1069447,2284.1,2283.7,4.52173914]
[1726506571192,0.1069447,2284.1,2283.8,0.12106299]
[1726506571520,0.1069447,2284.1,2283.7,4.52173914]
[1726506571718,0.1069447,2284.1,2283.9,0.1209992]
[1726506572029,2.47424487,2284.1,2283.8,4.49963299]
[1726506572196,1.66072305,2284.1,2284.0,0.12093541]
[1726506572399,2.3921,2284.0,2283.9,0.1209992]
[1726506572600,2.3921,2284.0,2283.3,8.75903]
[1726506572601,10.31345518,2284.0,2283.3,8.75903]
[1726506572800,2.05637468,2283.9,2283.4,0.14301793]
[1726506573000,2.05637468,2283.9,2283.4,0.26433613]
[1726506573001,4.29049415,2283.9,2283.4,0.26433613]
[1726506573223,1.35012377,2283.9,2283.4,4.64373613]
[1726506573431,21.10444625,2283.8,2283.4,4.64374613]
[1726506573637,19.8015805,2283.7,2283.4,0.26433613]
[1726506573998,2.4231,2283.6,2283.4,0.26433613]
[1726506574533,6.80226,2283.6,2283.4,0.26433613]
[1726506574905,19.8015805,2283.5,2283.4,0.14301793]
[1726506575110,4.37945,2283.4,2282.8,4.38055]
[1726506575311,19.8015805,2283.3,2283.0,0.14303898]
[1726506575620,19.8015805,2283.3,2282.9,4.55203552]
[1726506575798,19.8015805,2283.3,2283.0,4.38016]
[1726506575998,19.8690339,2283.3,2283.1,0.17737285]
[1726506576245,19.8690339,2283.3,2283.0,0.17850663]
[1726506576408,2.4498,2283.1,2283.0,0.17850663]
[1726506576737,2.4498,2283.1,2282.6,4.38096]
[1726506576938,2.4498,2283.1,2282.6,4.5239334]
[1726506577230,2.5172534,2283.1,2282.6,4.5239334]
[1726506577536,2.5172534,2283.1,2282.7,4.38066]
[1726506577774,0.0674534,2283.1,2283.0,4.3802]
[1726506578047,0.0674534,2283.1,2283.0,8.7604]
[1726506578219,0.0674534,2283.1,2283.0,4.3802]
[1726506578623,0.0674534,2283.1,2283.0,4.49993428]
[1726506578913,0.0674534,2283.1,2283.0,0.11973428]
[1726506579320,0.0674534,2283.1,2283.0,4.49993428]
[1726506580851,0.0674534,2283.1,2283.0,10.00901571]
[1726506581010,19.8690339,2283.1,2283.0,10.00901571]
[1726506581728,19.8690339,2283.1,2283.0,14.38921571]
[1726506581943,19.8690339,2283.1,2283.0,10.00901571]
[1726506582133,19.8690339,2283.1,2283.0,4.49993428]
[1726506583118,19.8690339,2283.1,2283.0,8.88013428]
[1726506583315,19.8690339,2283.1,2283.0,11.27243428]
[1726506584546,19.8690339,2283.1,2283.0,16.20263428]
[1726506584707,19.8690339,2283.1,2283.0,17.82289771]
[1726506585104,19.8690339,2283.1,2283.0,25.20309771]
[1726506585643,19.8690339,2283.1,2283.0,20.82289771]
[1726506586735,19.8690339,2283.1,2283.0,16.44269771]
[1726506586962,19.8690339,2283.1,2283.0,14.82243428]
[1726506587168,19.8690339,2283.1,2283.0,19.20263428]
[1726506588944,19.59738694,2283.1,2283.0,19.20263428]
[1726506595478,19.59738694,2283.1,2283.0,16.20263428]
[1726506595681,19.59738694,2283.1,2283.0,13.81033428]
[1726506595838,19.59738694,2283.1,2283.0,9.43013428]
[1726506596041,19.59738694,2283.1,2283.0,8.88013428]
[1726506596243,21.80109563,2283.1,2283.0,4.49993428]
[1726506596473,19.59738694,2283.1,2283.0,4.49993428]
[1726506597015,19.59738694,2283.1,2283.0,0.11973428]
[1726506597378,22.03408694,2283.1,2283.0,0.11973428]
[1726506597695,19.47765266,2283.0,2282.7,4.38062]
[1726506597895,19.47765266,2283.0,2282.5,4.38101]
[1726506597896,22.11905235,2283.0,2282.5,8.76198]
[1726506598110,2.3922,2282.9,2282.6,0.14306806]
[1726506598295,19.47765266,2282.8,2282.6,0.14306806]
[1726506598689,19.47765266,2282.7,2282.6,0.14306806]
[1726506599033,19.47765266,2282.7,2282.5,4.38097]
[1726506599210,24.95335266,2282.7,2282.6,0.14306806]
[1726506599383,5.4757,2282.6,2281.6,9.71314]
[1726506599722,26.79181593,2282.7,2282.1,0.1430994]
[1726506599723,5.2449,2282.4,2282.1,0.1430994]
[1726506600030,19.47765266,2282.3,2282.1,0.1430994]
[1726506600183,19.47765266,2282.3,2282.1,4.5249894]
[1726506600378,19.47765266,2282.3,2282.1,4.5250094]
[1726506600681,19.47765266,2282.3,2282.2,4.38173]
[1726506600909,19.47765266,2282.3,2282.2,8.76346]
[1726506601088,19.47765266,2282.3,2282.2,9.64856944]
[1726506601282,19.47765266,2282.5,2282.4,8.7627]
[1726506601586,19.33457834,2282.5,2282.4,4.38135]
[1726506602721,19.33457834,2282.5,2282.3,4.38143]
[1726506602893,21.81824617,2282.5,2282.2,4.38171]
[1726506603423,26.19945617,2282.5,2282.0,4.38203]
[1726506603594,26.19945617,2282.5,2282.0,8.76404]
[1726506604156,9.99526,2282.3,2281.8,4.38238]
[1726506604355,4.38188,2282.2,2281.7,4.38269]
[1726506604527,8.0588561,2282.2,2281.7,4.38269]
[1726506604732,5.6136,2282.0,2280.9,5.5543]
[1726506604935,23.71693834,2281.9,2281.4,4.38318]
[1726506605259,31.47059017,2281.9,2281.4,0.10957117]
[1726506605462,5.6136,2281.8,2281.4,0.10957117]
[1726506605759,27.08816017,2281.9,2281.6,4.38279]
[1726506605760,19.33457834,2281.9,2281.6,4.38279]
[1726506606116,19.33457834,2281.9,2281.8,8.765]
[1726506606359,11.78129,2282.5,2281.9,4.38221]
[1726506606360,19.33457834,2282.1,2281.9,4.38221]
[1726506606549,21.26803617,2282.1,2281.9,4.38221]
[1726506606746,21.26803617,2282.1,2282.0,0.10918771]
[1726506607054,19.33457834,2282.1,2282.0,8.87342771]
[1726506608853,19.33457834,2282.1,2282.0,4.49130771]
[1726506609018,19.33457834,2282.1,2282.0,0.10918771]
[1726506609459,24.63297834,2282.1,2282.0,0.10918771]
[1726506609667,27.53443117,2282.1,2281.6,4.38276]
[1726506609822,27.53443117,2282.1,2282.0,0.10918771]
[1726506611139,27.53443117,2282.1,2281.7,4.38254]
[1726506611444,27.53443117,2282.1,2282.0,0.10918771]
[1726506611665,27.53443117,2282.1,2281.8,4.38249]
[1726506611975,27.53443117,2282.1,2281.9,0.109573]
[1726506612146,31.91640117,2282.1,2281.9,0.109573]
[1726506612333,31.91640117,2282.1,2281.7,4.38254]
[1726506612536,31.91640117,2282.1,2282.0,0.10950911]
[1726506612741,27.53443117,2282.1,2281.7,8.76513]
[1726506613056,24.63297834,2282.1,2282.0,0.10983053]
[1726506613284,19.33457834,2282.1,2281.9,4.38212]
[1726506613571,14.33224,2282.4,2282.0,0.10983053]
[1726506613802,26.52502485,2282.3,2282.0,0.10983053]
[1726506614075,26.52502485,2282.3,2282.0,4.49193053]
[1726506614273,25.4392,2282.3,2281.9,4.38212]
[1726506614431,25.4392,2282.3,2282.1,0.10978856]
[1726506614632,25.4392,2282.3,2281.9,4.38212]
[1726506614941,25.4392,2282.3,2282.0,0.10978669]
[1726506615661,28.421256,2282.3,2282.0,0.10978669]
[1726506616029,32.802886,2282.3,2282.0,0.10978669]
[1726506616232,32.802886,2282.3,2281.8,4.38245]
[1726506616543,32.802886,2282.3,2281.7,4.38256]
[1726506616544,4.38173,2282.2,2281.7,4.38256]
[1726506616762,3.7184616,2282.1,2281.8,0.10987066]
[1726506616948,3.7184616,2282.1,2281.7,8.76516]
[1726506617258,3.7184616,2282.1,2281.8,0.10987066]
[1726506617776,4.3825,2281.8,2281.4,4.38312]
[1726506617980,5.6628,2281.6,2281.3,0.019117]
[1726506618269,5.6628,2281.6,2280.6,5.595]
[1726506618270,24.0943006,2281.3,2280.8,4.3844]
[1726506618471,25.3736206,2281.2,2280.8,4.3844]
[1726506618655,25.3736206,2281.2,2280.9,4.49090728]
[1726506619178,25.3736206,2281.2,2280.9,0.10677728]
[1726506619179,19.7108206,2281.1,2280.9,0.10677728]
[1726506619388,19.7108206,2281.1,2281.0,4.38404]
[1726506619565,19.7108206,2281.1,2281.0,0.10239186]
[1726506619781,19.7108206,2281.1,2281.0,8.87047186]
[1726506620271,19.7108206,2281.1,2281.0,4.48643186]
[1726506620471,19.7108206,2281.1,2281.0,8.87047186]
[1726506620675,19.7108206,2281.1,2281.0,9.75751905]
[1726506620882,19.7108206,2281.1,2281.0,5.37347905]
[1726506621468,19.7108206,2281.1,2281.0,0.10239186]
[1726506621770,19.7108206,2281.1,2281.0,8.87047186]
[1726506621966,5.6628,2281.5,2281.0,8.87047186]
[1726506621967,19.7108206,2281.4,2281.2,4.38354]
[1726506622169,19.7108206,2281.4,2281.3,4.48626666]
[1726506622374,5.4888,2281.8,2281.5,4.38298]
[1726506622557,5.3976,2282.1,2281.9,4.3823]
[1726506622738,5.85467168,2282.4,2282.0,4.48445927]
[1726506623083,6.5657868,2282.4,2282.1,4.38182]
[1726506623576,6.10871512,2282.4,2282.2,0.1022315]
[1726506624343,0.61087151,2282.3,2282.2,0.1022315]
[1726506624579,4.99241151,2282.3,2281.7,8.76508]
[1726506624745,4.99241151,2282.3,2281.8,0.10248707]
[1726506624942,1.47714815,2282.2,2281.6,4.38278]
[1726506625137,5.3976,2282.4,2281.8,4.38239]
[1726506625138,9.77902,2282.4,2281.8,4.38239]
[1726506625338,5.3976,2282.4,2281.9,4.48471317]
[1726506625551,1.416031,2282.3,2282.0,4.38209]
[1726506625755,5.3976,2282.4,2282.1,0.10062871]
[1726506626152,9.77897,2282.4,2282.1,0.10062871]
[1726506626357,5.3976,2282.4,2281.8,4.3824]
[1726506626553,5.359487,2282.3,2281.9,0.1007565]
[1726506626791,9.77905,2282.4,2281.9,0.1007565]
[1726506627419,9.77897,2282.4,2281.9,0.1007565]
[1726506627994,9.77897,2282.4,2281.7,4.38258]
[1726506628196,0.977897,2282.3,2281.8,0.10098845]
[1726506628520,24.22177,2282.2,2281.8,4.3825]
[1726506628683,19.84,2282.2,2281.9,0.10092455]
[1726506628882,23.3378407,2282.2,2281.9,0.10092455]
[1726506629418,27.7195807,2282.2,2281.9,0.10092455]
[1726506629924,23.3378407,2282.2,2281.7,4.38253]
[1726506630091,19.84,2282.2,2281.9,4.38218]
[1726506630296,19.84,2282.2,2281.9,5.258632]
[1726506630509,19.84,2282.2,2282.0,4.48287065]
[1726506630684,19.84,2282.2,2282.0,0.10086065]
[1726506630891,18.77636,2282.1,2282.0,0.10086065]
[1726506631243,10.01303,2281.9,2281.3,4.38333]
[1726506631527,24.22252,2281.8,2281.3,4.38333]
[1726506631937,19.84,2281.8,2281.4,4.38323]
[1726506632079,23.263515,2281.8,2281.5,4.38296]
[1726506632289,19.84,2281.8,2281.5,4.38296]
[1726506632511,19.84,2281.8,2281.5,8.76595]
[1726506632679,19.84,2281.8,2281.6,0.15068807]
[1726506633207,25.4706,2281.9,2281.6,0.15068807]
[1726506633405,26.670282,2281.9,2281.6,0.15068807]
[1726506634124,4.38252,2281.8,2281.3,4.38334]
[1726506634327,4.38252,2281.8,2281.3,8.76671]
[1726506634529,4.38252,2281.8,2281.4,0.15103983]
[1726506634712,7.9260222,2281.8,2281.4,0.15103983]
[1726506634915,23.3835022,2281.8,2281.4,0.15103983]
[1726506635117,4.38338,2281.4,2280.9,4.38413]
[1726506635439,4.3832,2281.5,2280.9,4.38411]
[1726506635440,0.876658,2281.3,2280.9,4.38411]
[1726506635608,8.76639,2281.5,2281.0,4.38396]
[1726506635935,5.812829,2281.5,2281.0,4.53510697]
[1726506636087,5.812829,2281.5,2281.0,0.15114697]
[1726506636280,4.38377,2281.2,2281.0,0.15114697]
[1726506636495,9.86446,2281.3,2281.0,0.15114697]
[1726506636704,0.986439,2281.2,2280.8,4.38441]
[1726506637026,4.38365,2281.2,2280.7,8.76901]
[1726506637241,4.38328,2281.4,2280.9,4.53578148]
[1726506637397,4.38355,2281.3,2280.8,0.15163777]
[1726506637596,5.827153,2281.3,2280.8,4.38442]
[1726506637906,4.38402,2281.1,2280.9,0.15157148]
[1726506638098,5.9387473,2281.1,2280.9,0.15157148]
[1726506638295,5.3362,2281.2,2280.8,4.3844]
[1726506638521,4.38356,2281.3,2280.6,8.7694]
[1726506638707,0.52910485,2281.2,2280.7,4.3846]
[1726506638918,4.91285485,2281.2,2280.7,4.3846]
[1726506639133,4.91285485,2281.2,2280.6,4.38466]
[1726506639134,4.91285485,2281.2,2280.8,0.1466364]
[1726506639438,4.38385,2281.1,2280.6,4.38466]
[1726506639733,4.38385,2281.1,2280.9,0.14657011]
[1726506639899,0.92965149,2281.1,2280.9,0.14657011]
[1726506640104,0.92965149,2281.1,2280.7,4.38458]
[1726506640433,4.38395,2281.1,2280.6,4.38466]
[1726506640730,4.38423,2280.9,2280.8,0.1466364]
[1726506641027,4.38423,2280.9,2280.8,0.14670953]
[1726506641193,20.58176091,2280.9,2280.8,0.14670953]
[1726506641395,7.38492,2280.6,2280.4,0.0534084]
[1726506641633,4.38462,2280.7,2280.4,0.0534084]
[1726506641634,1.176954,2280.5,2280.4,0.0534084]
[1726506641889,5.28699141,2280.7,2280.4,0.0534084]
[1726506641890,5.4434,2280.7,2280.4,0.0534084]
[1726506642255,4.38482,2280.6,2280.4,0.0534084]
[1726506642459,1.07305914,2280.6,2280.4,0.0534084]
[1726506642656,5.45789914,2280.6,2280.4,0.0534084]
[1726506643083,4.385,2280.5,2280.4,0.0534084]
[1726506643285,5.45789914,2280.6,2280.4,0.0534084]
[1726506643490,4.385,2280.5,2280.4,0.0534084]
[1726506643697,5.45789914,2280.6,2280.4,0.0534084]
[1726506644058,1.07305914,2280.6,2280.4,0.0534084]
[1726506644257,5.45787914,2280.6,2280.4,0.0534084]
[1726506644558,0.90237141,2280.8,2280.4,4.4384384]
[1726506644862,4.38473,2280.7,2280.4,0.0534084]
[1726506645063,4.99360795,2280.6,2280.4,0.0534084]
[1726506645292,14.3928,2280.5,2280.4,0.0534084]
[1726506645495,21.68204478,2280.5,2280.4,0.0534084]
[1726506645709,22.13323048,2280.5,2280.4,0.0534084]
[1726506645863,29.71459135,2280.5,2280.4,0.0534084]
[1726506646071,29.71459135,2280.5,2279.4,9.9355184]
[1726506646072,9.66177,2279.9,2279.4,9.9355184]
[1726506646264,5.2756,2279.9,2279.6,4.38673]
[1726506646475,5.2756,2279.9,2279.5,4.38683]
[1726506646708,5.2756,2279.9,2279.6,4.38671]
[1726506646903,10.56310451,2280.4,2279.5,5.495]
[1726506647105,4.3855,2280.3,2279.8,4.38625]
[1726506647405,14.04619,2280.4,2279.8,8.7725]
[1726506647599,2.04776076,2280.3,2280.0,4.38585]
[1726506647911,5.2756,2280.4,2280.1,4.23575]
[1726506648668,5.2756,2280.4,2279.5,9.8318]
[1726506648866,0.52756,2280.3,2280.0,4.38584]
[1726506649067,10.56261451,2280.7,2280.1,4.38559]
[1726506649309,10.56261451,2280.7,2280.2,4.33554]
[1726506649470,1.49160113,2280.6,2280.2,4.33554]
[1726506649670,1.49160113,2280.6,2279.5,0.99354284]
[1726506649671,5.2756,2280.7,2280.3,4.52928353]
[1726506649977,4.38436,2280.9,2280.3,4.38523]
[1726506650280,8.76872,2280.9,2280.4,4.38519]
[1726506650688,4.38461,2280.8,2280.5,0.14371502]
[1726506651004,5.217,2280.6,2280.2,4.38556]
[1726506651213,9.60196,2280.6,2279.5,0.55]
[1726506651509,1.0478657,2280.5,2280.1,4.38567]
[1726506651686,19.84,2280.4,2280.2,4.38547]
[1726506651890,19.84,2280.4,2280.2,4.52938399]
[1726506652101,19.84,2280.4,2280.2,0.14391399]
[1726506652709,19.84,2280.4,2280.0,4.38593]
[1726506652895,24.22519,2280.4,2280.3,0.14384766]
[1726506653106,27.607877,2280.4,2279.9,8.797437]
[1726506653419,19.84,2280.4,2280.3,4.38538]
[1726506653622,4.38443,2280.8,2280.3,10.25493766]
[1726506653623,4.38452,2280.8,2280.3,10.25493766]
[1726506653930,10.68370451,2280.9,2280.3,10.25493766]
[1726506653931,1.50682245,2280.7,2280.3,10.25493766]
[1726506654418,4.38481,2280.6,2280.3,0.14384766]
[1726506654784,8.76974,2280.6,2280.4,0.14378133]
[1726506654979,5.261784,2280.6,2280.1,4.38565]
[1726506655222,5.261784,2280.6,2280.2,0.14391399]
[1726506655223,4.385,2280.5,2280.2,0.14391399]
[1726506655395,9.68929,2280.4,2280.2,0.14391399]
[1726506655595,6.711513,2280.4,2279.9,4.411357]
[1726506655792,4.38552,2280.3,2279.9,0.025357]
[1726506655992,4.3855,2280.3,2280.0,0.14404666]
[1726506656207,9.68931,2280.4,2280.0,0.14404666]
[1726506656501,5.88308845,2280.3,2280.0,0.14404666]
[1726506657030,4.38567,2280.2,2280.0,0.14404666]
[1726506657529,24.22577,2280.1,2280.0,0.14404666]
[1726506658193,19.84,2280.1,2280.0,0.14393689]
[1726506659478,29.91807,2280.1,2280.0,0.14393689]
[1726506659880,34.30384,2280.1,2280.0,0.14393689]
[1726506660084,37.93632234,2280.1,2280.0,0.14393689]
[1726506660327,29.16478234,2280.1,2280.0,0.14393689]
[1726506660994,19.84,2280.1,2280.0,0.14393689]
[1726506661192,19.84,2280.2,2280.0,0.14393689]
[1726506661393,19.84,2280.5,2280.4,4.38519]
[1726506661705,1.35339677,2280.9,2280.4,9.78239]
[1726506661706,19.84,2280.7,2280.4,9.78239]
[1726506661922,19.84,2280.7,2280.4,0.14437423]
[1726506661923,22.262433,2280.7,2280.4,0.14437423]